fUSD/lending_fUSD_20240423
["ID","MTS","AMOUNT","RATE_DAILY","PERIOD"]
[323296574,1713879059135,-150.0,0.00012678,2]
[323296575,1713879059144,-150.0,0.00012685,2]
[323296576,1713879059154,-150.0,0.00012686,2]
[323296577,1713879059163,-150.0,0.00012689,2]
[323296578,1713879059173,-250000.0,0.0001269,2]
[323296579,1713879059183,-150.0,0.00012691,2]
[323296580,1713879059192,-150.0,0.00012692,2]
[323296581,1713879059202,-150.0,0.00012694,2]
[323296582,1713879059211,-150.0,0.00012699,2]
[323296583,1713879059221,-300.0,0.000127,4]
[323296584,1713879059231,-150.0,0.00012718,2]
[323296585,1713879059241,-1500.0,0.00012718,2]
[323296586,1713879059250,-2845.29422279,0.00012722,2]
[323296587,1713879059261,-150.0,0.00012729,2]
[323296588,1713879059271,-1000.0,0.00012729,2]
[323296589,1713879059280,-500.0,0.00012729,2]
[323296590,1713879059290,-300.0,0.0001274,2]
[323296591,1713879059301,-472.44266129,0.00012741,2]
[323296592,1713879059311,-5775.73,0.00012742,2]
[323296593,1713879059321,-1732.3989,0.00012742,2]
[323296594,1713879059333,-500.0,0.00012742,2]
[323296595,1713879059343,-1488.02446358,0.00012751,2]
[323296596,1713879059353,-150.0,0.00012767,2]
[323296597,1713879059363,-150.0,0.00012775,2]
[323296598,1713879059373,-150.0,0.00012776,2]
[323296599,1713879059383,-150.0,0.00012779,2]
[323296600,1713879059393,-150.0,0.0001278,2]
[323296601,1713879059403,-150.0,0.00012781,2]
[323296602,1713879059413,-200.88129127,0.00012791,2]
[323296603,1713879059424,-155.0,0.000128,2]
[323296604,1713879059433,-352.0,0.000128,2]
[323296605,1713879059443,-300.0,0.000128,4]
[323296606,1713879059453,-1000.0,0.000128,2]
[323296607,1713879059463,-222.0,0.000128,2]
[323296608,1713879059473,-1850.55746997,0.000128,2]
[323296609,1713879059483,-238.00554117,0.000128,2]
[323296610,1713879059492,-790.37112452,0.000128,2]
[323296611,1713879059502,-1000.0,0.00012802,2]
[323296612,1713879059512,-150.0,0.00012803,2]
[323296613,1713879059522,-294.22119381,0.00012805,2]
[323296614,1713879059532,-150.0,0.00012807,2]
[323296615,1713879059541,-2845.29422279,0.00012811,2]
[323296616,1713879059552,-472.44266127,0.00012821,2]
[323296617,1713879059561,-5130.1708356,0.00012823,2]
[323296618,1713879059571,-2533.764489,0.00012823,2]
[323296619,1713879059583,-43824.1442956,0.00012823,2]
[323296620,1713879059593,-8029.7003996,0.00012823,2]
[323296621,1713879059603,-781.7946196,0.00012823,2]
[323296622,1713879059614,-1301.0185432,0.00012823,2]
[323296623,1713879059624,-154.46172361,0.00012832,2]
[323296624,1713879059634,-4170.91282047,0.00012832,2]
[323296625,1713879059644,-1109.2341477,0.00012832,2]
[323296626,1713879059654,-4375.0740184,0.00012833,2]
[323296627,1713879059664,-2160.8261283,0.00012833,2]
[323296628,1713879059674,-37373.7797883,0.00012833,2]
[323296629,1713879059684,-6847.8291892,0.00012833,2]
[323296630,1713879059694,-1476.90264,0.00012833,2]
[323296631,1713879059704,-500.0,0.00012839,2]
[323296632,1713879059713,-500.0,0.00012839,2]
[323296633,1713879059723,-500.0,0.00012839,2]
[323296634,1713879059935,-2188.35,0.0001284,2]
[323296635,1713879059945,-500.0,0.0001284,2]
[323296636,1713879059955,-500.0,0.0001284,2]
[323296637,1713879059966,-500.0,0.0001284,2]
[323296638,1713879059976,-1394.36,0.0001284,2]
[323296639,1713879059985,-816.8,0.0001284,2]
[323296640,1713879059995,-500.0,0.0001284,2]
[323296641,1713879060005,-500.0,0.0001284,2]
[323296642,1713879060015,-500.0,0.0001284,2]
[323296643,1713879060024,-910.14,0.0001284,2]
[323296644,1713879060034,-500.0,0.0001284,2]
[323296645,1713879060043,-500.0,0.0001284,2]
[323296646,1713879060054,-3076.54,0.0001284,2]
[323296647,1713879060063,-1296.05,0.0001284,2]
[323296648,1713879060072,-500.0,0.0001284,2]
[323296649,1713879060084,-544.58,0.0001284,2]
[323296650,1713879060095,-508.61,0.0001284,2]
[323296651,1713879060104,-1145.07,0.0001284,2]
[323296652,1713879060113,-855.89,0.0001284,2]
[323296653,1713879060122,-500.0,0.0001284,2]
[323296654,1713879060131,-830.47,0.0001284,2]
[323296655,1713879060141,-567.03,0.0001284,2]
[323296656,1713879060150,-2823.02,0.0001284,2]
[323296657,1713879060160,-500.0,0.0001284,2]
[323296658,1713879060170,-500.0,0.0001284,2]
[323296659,1713879060179,-500.0,0.0001284,2]
[323296660,1713879060189,-2294.75,0.0001284,2]
[323296661,1713879060199,-500.0,0.0001284,2]
[323296662,1713879060209,-559.13,0.0001284,2]
[323296663,1713879060218,-1838.04,0.0001284,2]
[323296664,1713879060228,-500.0,0.0001284,2]
[323296665,1713879060238,-11361.37,0.0001284,2]
[323296666,1713879060248,-1806.62,0.0001284,2]
[323296667,1713879060258,-680.07,0.0001284,2]
[323296668,1713879060268,-500.0,0.0001284,2]
[323296669,1713879060278,-894.91,0.0001284,2]
[323296670,1713879060288,-1660.22,0.0001284,2]
[323296671,1713879060298,-5808.11,0.0001284,2]
[323296672,1713879060307,-551.97,0.0001284,2]
[323296673,1713879060317,-500.0,0.0001284,2]
[323296674,1713879060333,-604.3,0.0001284,2]
[323296675,1713879060343,-500.0,0.0001284,2]
[323296676,1713879060353,-586.62,0.0001284,2]
[323296677,1713879060363,-2254.8,0.0001284,2]
[323296678,1713879060373,-500.0,0.0001284,2]
[323296679,1713879060382,-5569.83,0.0001284,2]
[323296680,1713879060392,-789.79,0.0001284,2]
[323296681,1713879060402,-1722.31,0.0001284,2]
[323296682,1713879060412,-811.09,0.0001284,2]
[323296683,1713879060422,-500.0,0.0001284,2]
[323296684,1713879060431,-2712.98,0.0001284,2]
[323296685,1713879060441,-500.0,0.0001284,2]
[323296686,1713879060451,-558.75,0.0001284,2]
[323296687,1713879060463,-571.91,0.0001284,2]
[323296688,1713879060474,-810.57,0.0001284,2]
[323296689,1713879060485,-649.84,0.0001284,2]
[323296690,1713879060497,-500.0,0.0001284,2]
[323296691,1713879060507,-1124.2,0.0001284,2]
[323296692,1713879060517,-532.22,0.0001284,2]
[323296693,1713879060527,-500.0,0.0001284,2]
[323296694,1713879060538,-12796.31,0.0001284,2]
[323296695,1713879060549,-22994.43,0.0001284,2]
[323296696,1713879060560,-536.02,0.00012841,2]
[323296697,1713879060571,-500.0,0.00012841,2]
[323296698,1713879060584,-500.0,0.00012841,2]
[323296699,1713879060595,-500.0,0.00012841,2]
[323296700,1713879060607,-662.1,0.00012841,2]
[323296701,1713879060617,-500.0,0.00012841,2]
[323296702,1713879060629,-658.17,0.00012841,2]
[323296703,1713879060640,-663.15,0.00012841,2]
[323296704,1713879060652,-500.0,0.00012841,2]
[323296705,1713879060663,-500.0,0.00012841,2]
[323296706,1713879060673,-500.0,0.00012841,2]
[323296707,1713879060684,-500.0,0.00012841,2]
[323296708,1713879060695,-630.3,0.00012841,2]
[323296709,1713879060705,-500.0,0.00012841,2]
[323296710,1713879060716,-500.0,0.00012841,2]
[323296711,1713879060726,-527.86,0.00012841,2]
[323296712,1713879060737,-500.0,0.00012841,2]
[323296713,1713879060746,-500.0,0.00012841,2]
[323296714,1713879060757,-500.0,0.00012841,2]
[323296715,1713879060767,-614.59,0.00012841,2]
[323296716,1713879060777,-500.0,0.00012841,2]
[323296717,1713879060788,-500.0,0.00012841,2]
[323296718,1713879060799,-552.51,0.00012841,2]
[323296719,1713879060809,-899.31,0.00012841,2]
[323296720,1713879060820,-921.24,0.00012841,2]
[323296721,1713879060836,-500.0,0.00012841,2]
[323296722,1713879060847,-500.0,0.00012841,2]
[323296723,1713879060858,-739.64,0.00012841,2]
[323296724,1713879060869,-500.0,0.00012841,2]
[323296725,1713879060878,-500.0,0.00012841,2]
[323296726,1713879060888,-710.84,0.00012841,2]
[323296727,1713879060898,-500.0,0.00012841,2]
[323296728,1713879060908,-840.34,0.00012841,2]
[323296729,1713879060918,-500.0,0.00012841,2]
[323296730,1713879060928,-500.0,0.00012841,2]
[323296731,1713879060940,-500.0,0.00012841,2]
[323296732,1713879060951,-500.0,0.00012841,2]
[323296733,1713879060965,-992.52,0.00012841,2]
[323296734,1713879060974,-602.21,0.00012841,2]
[323296735,1713879060983,-500.0,0.00012841,2]
[323296736,1713879060994,-500.0,0.00012841,2]
[323296737,1713879061004,-500.0,0.00012841,2]
[323296738,1713879061014,-500.0,0.00012841,2]
[323296739,1713879061024,-500.0,0.00012841,2]
[323296740,1713879061036,-500.0,0.00012841,2]
[323296741,1713879061048,-500.0,0.00012841,2]
[323296742,1713879061059,-500.0,0.00012841,2]
[323296743,1713879061069,-500.0,0.00012841,2]
[323296744,1713879061082,-500.0,0.00012841,2]
[323296745,1713879061093,-500.0,0.00012841,2]
[323296746,1713879061103,-928.15,0.00012841,2]
[323296747,1713879061113,-667.27,0.00012841,2]
[323296748,1713879061124,-500.0,0.00012841,2]
[323296749,1713879061134,-500.0,0.00012841,2]
[323296750,1713879061144,-1267.59,0.00012841,2]
[323296751,1713879061155,-916.56,0.00012841,2]
[323296752,1713879061166,-500.0,0.00012841,2]
[323296753,1713879061177,-500.0,0.00012841,2]
[323296754,1713879061188,-500.0,0.00012841,2]
[323296755,1713879061199,-628.78,0.00012841,2]
[323296756,1713879061209,-628.94,0.00012841,2]
[323296757,1713879061219,-738.57,0.00012841,2]
[323296758,1713879061230,-500.0,0.00012841,2]
[323296759,1713879061241,-510.22,0.00012841,2]
[323296760,1713879061251,-500.0,0.00012841,2]
[323296761,1713879061262,-500.0,0.00012841,2]
[323296762,1713879061274,-500.0,0.00012841,2]
[323296763,1713879061284,-694.77,0.00012841,2]
[323296764,1713879061295,-808.82,0.00012841,2]
[323296765,1713879061306,-689.13,0.00012841,2]
[323296766,1713879061317,-848.09,0.00012841,2]
[323296767,1713879061327,-500.0,0.00012841,2]
[323296768,1713879061339,-500.0,0.00012841,2]
[323296769,1713879061350,-500.0,0.00012841,2]
[323296770,1713879061360,-607.66,0.00012841,2]
[323296771,1713879061371,-500.0,0.00012841,2]
[323296772,1713879061382,-500.0,0.00012841,2]
[323296773,1713879061391,-500.0,0.00012841,2]
[323296774,1713879061403,-904.27,0.00012841,2]
[323296775,1713879061413,-500.0,0.00012841,2]
[323296776,1713879061424,-500.0,0.00012841,2]
[323296777,1713879061435,-500.0,0.00012841,2]
[323296778,1713879061446,-500.0,0.00012841,2]
[323296779,1713879061457,-500.0,0.00012841,2]
[323296780,1713879061468,-1336.63,0.00012841,2]
[323296781,1713879061478,-522.57,0.00012841,2]
[323296782,1713879061489,-506.8,0.00012841,2]
[323296783,1713879061499,-424.48109378,0.00012841,2]
[323296784,1713879061509,-927.47,0.00012841,2]
[323296785,1713879061520,-500.0,0.00012841,2]
[323296786,1713879061530,-841.25,0.00012841,2]
[323296787,1713879061541,-500.0,0.00012841,2]
[323296788,1713879061551,-648.16,0.00012841,2]
[323296789,1713879061561,-500.0,0.00012841,2]
[323296790,1713879061571,-500.0,0.00012841,2]
[323296791,1713879061584,-500.0,0.00012841,2]
[323296792,1713879061594,-500.0,0.00012841,2]
[323296793,1713879061605,-500.0,0.00012841,2]
[323296794,1713879061615,-500.0,0.00012841,2]
[323296795,1713879061626,-500.0,0.00012841,2]
[323296796,1713879061636,-500.0,0.00012841,2]
[323296797,1713879061646,-500.0,0.00012841,2]
[323296798,1713879061656,-500.0,0.00012841,2]
[323296799,1713879061667,-500.0,0.00012841,2]
[323296800,1713879061677,-500.0,0.00012841,2]
[323296801,1713879061687,-605.56,0.00012841,2]
[323296802,1713879061697,-500.0,0.00012841,2]
[323296803,1713879061707,-311.87863211,0.00012841,2]
[323296804,1713879061717,-605.36,0.00012841,2]
[323296805,1713879061729,-500.0,0.00012841,2]
[323296806,1713879061738,-966.1,0.00012841,2]
[323296807,1713879061748,-500.0,0.00012841,2]
[323296808,1713879061758,-500.0,0.00012841,2]
[323296809,1713879061769,-500.0,0.00012841,2]
[323296810,1713879061779,-500.0,0.00012841,2]
[323296811,1713879061789,-500.0,0.00012841,2]
[323296812,1713879061800,-567.95,0.00012841,2]
[323296813,1713879061810,-500.0,0.00012841,2]
[323296814,1713879061820,-500.0,0.00012841,2]
[323296815,1713879061833,-150.0,0.00012841,2]
[323296816,1713879061845,-525.95,0.00012841,2]
[323296817,1713879061854,-500.0,0.00012841,2]
[323296818,1713879061864,-500.0,0.00012841,2]
[323296819,1713879061873,-500.0,0.00012841,2]
[323296820,1713879061882,-535.83,0.00012841,2]
[323296821,1713879061892,-520.95,0.00012841,2]
[323296822,1713879061902,-639.77,0.00012841,2]
[323296823,1713879061911,-500.0,0.00012841,2]
[323296824,1713879061926,-500.0,0.00012841,2]
[323296825,1713879061935,-500.0,0.00012841,2]
[323296826,1713879061945,-500.0,0.00012841,2]
[323296827,1713879061959,-500.0,0.00012841,2]
[323296828,1713879061969,-500.0,0.00012841,2]
[323296829,1713879061979,-500.0,0.00012841,2]
[323296830,1713879061988,-629.43,0.00012841,2]
[323296831,1713879061999,-500.0,0.00012841,2]
[323296832,1713879062009,-809.97,0.00012841,2]
[323296833,1713879062019,-500.0,0.00012841,2]
[323296834,1713879062030,-505.41,0.00012841,2]
[323296835,1713879062041,-500.0,0.00012841,2]
[323296836,1713879062051,-500.0,0.00012841,2]
[323296837,1713879062061,-500.0,0.00012841,2]
[323296838,1713879062071,-500.0,0.00012841,2]
[323296839,1713879062085,-692.69,0.00012841,2]
[323296840,1713879062095,-500.0,0.00012841,2]
[323296841,1713879062105,-500.0,0.00012841,2]
[323296842,1713879062116,-500.0,0.00012841,2]
[323296843,1713879062128,-1172.75,0.00012841,2]
[323296844,1713879062138,-500.0,0.00012841,2]
[323296845,1713879062154,-500.0,0.00012841,2]
[323296846,1713879062170,-500.0,0.00012841,2]
[323296847,1713879062185,-743.0,0.00012841,2]
[323296848,1713879062200,-675.43,0.00012841,2]
[323296849,1713879062211,-500.0,0.00012841,2]
[323296850,1713879062223,-500.0,0.00012841,2]
[323296851,1713879062237,-500.0,0.00012841,2]
[323296852,1713879062252,-500.0,0.00012841,2]
[323296853,1713879062266,-500.0,0.00012841,2]
[323296854,1713879062279,-500.0,0.00012841,2]
[323296855,1713879062293,-1312.46,0.00012841,2]
[323296856,1713879062304,-677.67,0.00012841,2]
[323296857,1713879062316,-933.21,0.00012841,2]
[323296858,1713879062331,-500.0,0.00012841,2]
[323296859,1713879062344,-500.0,0.00012841,2]
[323296860,1713879062356,-795.71,0.00012841,2]
[323296861,1713879062370,-500.0,0.00012841,2]
[323296862,1713879062384,-500.0,0.00012841,2]
[323296863,1713879062397,-515.21,0.00012841,2]
[323296864,1713879062409,-500.0,0.00012841,2]
[323296865,1713879062424,-500.0,0.00012841,2]
[323296866,1713879062439,-2059.68,0.00012841,2]
[323296867,1713879062451,-636.05,0.00012841,2]
[323296868,1713879062466,-500.0,0.00012841,2]
[323296869,1713879062478,-500.0,0.00012841,2]
[323296870,1713879062490,-500.0,0.00012841,2]
[323296871,1713879062503,-500.0,0.00012841,2]
[323296872,1713879062515,-834.35,0.00012841,2]
[323296873,1713879062529,-581.28,0.00012841,2]
[323296874,1713879062540,-500.0,0.00012841,2]
[323296875,1713879062554,-500.0,0.00012841,2]
[323296876,1713879062568,-500.0,0.00012841,2]
[323296877,1713879062582,-506.45,0.00012841,2]
[323296878,1713879062595,-615.15,0.00012841,2]
[323296879,1713879062605,-500.0,0.00012841,2]
[323296880,1713879062615,-500.0,0.00012841,2]
[323296881,1713879062626,-511.2,0.00012841,2]
[323296882,1713879062638,-500.0,0.00012841,2]
[323296883,1713879062651,-2072.39,0.00012841,2]
[323296884,1713879062662,-500.0,0.00012841,2]
[323296885,1713879062675,-500.0,0.00012841,2]
[323296886,1713879062687,-27976.82,0.00012841,2]
[323296887,1713879062697,-912.15,0.00012841,2]
[323296888,1713879062707,-500.0,0.00012841,2]
[323296889,1713879062719,-782.52,0.00012841,2]
[323296890,1713879062730,-707.42,0.00012841,2]
[323296891,1713879062742,-500.0,0.00012841,2]
[323296892,1713879062753,-500.0,0.00012841,2]
[323296893,1713879062764,-626.48,0.00012841,2]
[323296894,1713879062777,-500.0,0.00012841,2]
[323296895,1713879062788,-500.0,0.00012841,2]
[323296896,1713879062799,-3473.51,0.00012841,2]
[323296897,1713879062810,-4476.31,0.00012841,2]
[323296898,1713879062822,-500.0,0.00012841,2]
[323296899,1713879062834,-885.23,0.00012841,2]
[323296900,1713879062845,-502.46,0.00012841,2]
[323296901,1713879062857,-500.0,0.00012841,2]
[323296902,1713879062869,-523.52,0.00012841,2]
[323296903,1713879062881,-1665.8,0.00012841,2]
[323296904,1713879062895,-1425.31,0.00012841,2]
[323296905,1713879062907,-950.72,0.00012841,2]
[323296906,1713879062920,-500.0,0.00012841,2]
[323296907,1713879062936,-500.0,0.00012841,2]
[323296908,1713879062948,-500.0,0.00012841,2]
[323296909,1713879062962,-1495.28,0.00012841,2]
[323296910,1713879062975,-500.0,0.00012841,2]
[323296911,1713879062987,-500.0,0.00012841,2]
[323296912,1713879063000,-500.0,0.00012841,2]
[323296913,1713879063013,-500.0,0.00012841,2]
[323296914,1713879063025,-534.48,0.00012841,2]
[323296915,1713879063039,-504.09,0.00012841,2]
[323296916,1713879063052,-888.67,0.00012841,2]
[323296917,1713879063065,-1009.16,0.00012841,2]
[323296918,1713879063078,-842.74,0.00012841,2]
[323296919,1713879063092,-4748.36,0.00012841,2]
[323296920,1713879063106,-500.0,0.00012841,2]
[323296921,1713879063118,-637.91,0.00012841,2]
[323296922,1713879063130,-1000.0,0.00012841,2]
[323296923,1713879063142,-643.14,0.00012841,2]
[323296924,1713879063154,-500.0,0.00012841,2]
[323296925,1713879063166,-550.83,0.00012841,2]
[323296926,1713879063178,-500.0,0.00012841,2]
[323296927,1713879063191,-500.0,0.00012841,2]
[323296928,1713879063202,-500.0,0.00012841,2]
[323296929,1713879063216,-2386.36,0.00012841,2]
[323296930,1713879063228,-500.0,0.00012841,2]
[323296931,1713879063241,-500.0,0.00012841,2]
[323296932,1713879063253,-1928.19,0.00012841,2]
[323296933,1713879063266,-500.0,0.00012841,2]
[323296934,1713879063279,-500.0,0.00012841,2]
[323296935,1713879063290,-1977.83,0.00012841,2]
[323296936,1713879063302,-500.0,0.00012841,2]
[323296937,1713879063316,-500.0,0.00012841,2]
[323296938,1713879063329,-1868.98,0.00012841,2]
[323296939,1713879063342,-500.0,0.00012841,2]
[323296940,1713879063354,-500.0,0.00012841,2]
[323296941,1713879063366,-1984.84,0.00012841,2]
[323296942,1713879063378,-500.0,0.00012841,2]
[323296943,1713879063391,-619.17,0.00012841,2]
[323296944,1713879063402,-500.0,0.00012841,2]
[323296945,1713879063413,-500.0,0.00012841,2]
[323296946,1713879063425,-1402.94,0.00012841,2]
[323296947,1713879063436,-500.0,0.00012841,2]
[323296948,1713879063448,-576.72,0.00012841,2]
[323296949,1713879063460,-500.0,0.00012841,2]
[323296950,1713879063472,-895.03,0.00012841,2]
[323296951,1713879063483,-715.88,0.00012841,2]
[323296952,1713879063494,-999.39,0.00012841,2]
[323296953,1713879063506,-500.0,0.00012841,2]
[323296954,1713879063517,-500.0,0.00012842,2]
[323296955,1713879063528,-500.0,0.00012842,2]
[323296956,1713879063539,-500.0,0.00012842,2]
[323296957,1713879063551,-500.0,0.00012842,2]
[323296958,1713879063562,-500.0,0.00012842,2]
[323296959,1713879063577,-500.0,0.00012842,2]
[323296960,1713879063589,-630.36,0.00012842,2]
[323296961,1713879063599,-500.0,0.00012843,2]
[323296962,1713879063611,-500.0,0.00012843,2]
[323296963,1713879063622,-500.0,0.00012843,2]
[323296964,1713879063633,-500.0,0.00012843,2]
[323296965,1713879063644,-500.0,0.00012843,2]
[323296966,1713879063657,-500.0,0.00012843,2]
[323296967,1713879063668,-500.0,0.00012843,2]
[323296968,1713879063679,-500.0,0.00012843,2]
[323296969,1713879063691,-791.32,0.00012843,2]
[323296970,1713879063702,-500.0,0.00012843,2]
[323296971,1713879063714,-500.0,0.00012843,2]
[323296972,1713879063727,-500.0,0.00012843,2]
[323296973,1713879063738,-500.0,0.00012843,2]
[323296974,1713879063751,-500.0,0.00012843,2]
[323296975,1713879063764,-500.0,0.00012843,2]
[323296976,1713879063775,-500.0,0.00012843,2]
[323296977,1713879063786,-500.0,0.00012843,2]
[323296978,1713879063798,-500.0,0.00012843,2]
[323296979,1713879063809,-615.07,0.00012843,2]
[323296980,1713879063820,-500.0,0.00012843,2]
[323296981,1713879063832,-157.042319,0.00012848,2]
[323296982,1713879063844,-157.042319,0.00012848,2]
[323296983,1713879063855,-157.042319,0.00012848,2]
[323296984,1713879063868,-157.042319,0.00012848,2]
[323296985,1713879063881,-157.042319,0.00012848,2]
[323296986,1713879063892,-1850.55746997,0.0001285,2]
[323296987,1713879063904,-238.00554115,0.0001285,2]
[323296988,1713879063918,-790.37112451,0.0001285,2]
[323296989,1713879063929,-917.4497522,0.00012882,2]
[323296990,1713879063941,-3619.9772012,0.00012891,2]
[323296991,1713879063957,-2864.880384,0.00012891,2]
[323296992,1713879063968,-2109.7835667,0.00012891,2]
[323296993,1713879063980,-1354.6867495,0.00012891,2]
[323296994,1713879063992,-1787.8877677,0.00012891,2]
[323296995,1713879064006,-1414.9494071,0.00012891,2]
[323296996,1713879064017,-1042.0110464,0.00012891,2]
[323296997,1713879064028,-669.0726858,0.00012891,2]
[323296998,1713879064039,-30923.4152809,0.00012891,2]
[323296999,1713879064051,-24473.0507735,0.00012891,2]
[323297000,1713879064062,-18022.6862661,0.00012891,2]
[323297001,1713879064073,-11572.3217587,0.00012891,2]
[323297002,1713879064086,-5665.9579788,0.00012891,2]
[323297003,1713879064097,-4484.0867685,0.00012891,2]
[323297004,1713879064109,-3302.2155581,0.00012891,2]
[323297005,1713879064121,-2120.3443477,0.00012891,2]
[323297006,1713879064131,-725.6653566,0.00012891,2]
[323297007,1713879064142,-533.8809611,0.00012891,2]
[323297008,1713879064154,-342.0965656,0.00012891,2]
[323297009,1713879064165,-500.0,0.00012897,2]
[323297010,1713879064176,-500.0,0.00012897,2]
[323297011,1713879064188,-500.0,0.00012897,2]
[323297012,1713879064199,-500.0,0.00012897,2]
[323297013,1713879064211,-751.0,0.00012897,2]
[323297014,1713879064222,-157.042319,0.00012898,2]
[323297015,1713879064233,-157.042319,0.00012898,2]
[323297016,1713879064245,-157.042319,0.00012898,2]
[323297017,1713879064256,-157.042319,0.00012898,2]
[323297018,1713879064267,-157.042319,0.00012898,2]
[323297019,1713879064278,-65224.731034,0.000129,2]
[323297020,1713879064290,-574620.6681,0.000129,2]
[323297021,1713879064300,-2845.29422279,0.000129,2]
[323297022,1713879064311,-300.0,0.000129,4]
[323297023,1713879064322,-7262.80386547,0.000129,2]
[323297024,1713879064333,-7262.80386547,0.000129,2]
[323297025,1713879064344,-7262.80386547,0.000129,2]
[323297026,1713879064355,-7262.80386547,0.000129,2]
[323297027,1713879064366,-472.44266127,0.000129,2]
[323297028,1713879064378,-7262.80386547,0.000129,2]
[323297029,1713879064389,-7262.80386547,0.000129,2]
[323297030,1713879064401,-7262.80386547,0.000129,2]
[323297031,1713879064412,-7262.80386547,0.000129,2]
[323297032,1713879064423,-1850.55746997,0.000129,2]
[323297033,1713879064435,-238.00554115,0.000129,2]
[323297034,1713879064448,-790.37112451,0.000129,2]
[323297035,1713879064460,-349.4,0.00012934,2]
[323297036,1713879064471,-157.042319,0.00012948,2]
[323297037,1713879064483,-157.042319,0.00012948,2]
[323297038,1713879064493,-157.042319,0.00012948,2]
[323297039,1713879064505,-157.042319,0.00012948,2]
[323297040,1713879064517,-157.042319,0.00012948,2]
[323297041,1713879064527,-153.05,0.00012987,2]
[323297042,1713879064538,-150.0,0.00012987,2]
[323297043,1713879064550,-150.0,0.00012987,2]
[323297044,1713879064561,-150.0,0.00012987,2]
[323297045,1713879064571,-791.32,0.00012989,2]
[323297046,1713879064584,-2226.98863345,0.0001299,2]
[323297047,1713879064595,-630.36,0.00012994,2]
[323297048,1713879064606,-16542.13431543,0.00012995,2]
[323297049,1713879064617,-405.52415355,0.00012996,2]
[323297050,1713879064628,-192.72483232,0.00012997,2]
[323297051,1713879064967,-15036.12911711,0.00012998,2]
[323297052,1713879064995,-157.042319,0.00012998,2]
[323297053,1713879065006,-157.042319,0.00012998,2]
[323297054,1713879065016,-157.042319,0.00012998,2]
[323297055,1713879065026,-157.042319,0.00012998,2]
[323297056,1713879065037,-157.042319,0.00012998,2]
[323297057,1713879065047,-2244.45986864,0.00012998,2]
[323297058,1713879065057,-791.32,0.00012999,2]
[323297059,1713879065067,-791.32,0.00012999,2]
[323297060,1713879065076,-791.32,0.00012999,2]
[323297061,1713879065088,-791.32,0.00012999,2]
[323297062,1713879065097,-791.32,0.00012999,2]
[323297063,1713879065106,-791.32,0.00012999,2]
[323297064,1713879065116,-791.32,0.00012999,2]
[323297065,1713879065126,-791.32,0.00012999,2]
[323297066,1713879065135,-791.3472173,0.00012999,2]
[323297067,1713879065145,-630.36,0.00012999,2]
[323297068,1713879065154,-630.36,0.00012999,2]
[323297069,1713879065164,-630.36,0.00012999,2]
[323297070,1713879065173,-630.36,0.00012999,2]
[323297071,1713879065183,-630.36,0.00012999,2]
[323297072,1713879065193,-630.36,0.00012999,2]
[323297073,1713879065202,-630.36,0.00012999,2]